Cogmind - Beta 13 @@@ ROGUE MODE // 2024.04.26 @ 21:16:26 Player: Alphabethead Result: Destroyed by as-78999 with Assembled Rifle Performance ------------- Evolutions (0) 0 Regions Visited (2) 400 Robots Destroyed (5) 25 Value Destroyed (169) 169 Prototype IDs (0) 0 Alien Tech Used (0) 0 Bonus (0) 0 TOTAL SCORE: 594 Bonus ------- None Cogmind --------- Core Integrity 0/250 Matter 300/300 Energy 250/250 System Corruption 4% Temperature Cool (80) Movement Rolling (95) Ox1 Location -10/Mines Parts ------- > --- POWER (1) -------- Ion Engine > --- PROPULSION (2) --- Wheel Wheel > --- UTILITY (2) ------ Medium Storage Unit Signal Interpreter > --- WEAPON (2) ------- Ion Cannon > --- INVENTORY (10) --- Wheel Wheel Improved Heat Sink Improved Terrain Scanner Seismic Detector Targeting Computer Grenade Launcher Mining Laser Peak State ------------ > --- POWER ------------ Nuclear Core > --- PROPULSION ------- Wheel Wheel > --- UTILITY ---------- Medium Storage Unit Signal Interpreter > --- WEAPON ----------- Small Laser Bore Cannon > --- INVENTORY -------- Ion Engine Wheel Improved Heat Sink Improved Terrain Scanner Seismic Detector Targeting Computer Ion Cannon Grenade Launcher Mining Laser [Rating: 14] Favorites ----------- Power Ion Engine Engine Ion Engine Power Core Nuclear Core Propulsion Wheel Wheel Wheel Utility Medium Storage Unit Device Seismic Detector Storage Medium Storage Unit Processor Signal Interpreter Weapon Small Laser Energy Gun Small Laser Energy Cannon Ion Cannon Ballistic Gun Assault Rifle Ballistic Cannon Bore Cannon Build | -11 -10 -10 ------- Run | Yrd Mat Min Slots Evolved . | . . . Power . | . . . Propulsion . | . . . Utility . | . . . Weapon . | . . . Parts Attached 16 | 7 2 7 Power 3 | 1 . 2 Engine 2 | 1 . 1 Core 1 | . . 1 Reactor . | . . . Propulsion 5 | 2 . 3 Treads . | . . . Leg . | . . . Wheel 5 | 2 . 3 Hover . | . . . Flight . | . . . Utility 4 | 2 2 . Device 1 | 1 . . Storage 2 | 1 1 . Processor 1 | . 1 . Hackware . | . . . Protection . | . . . Artifact . | . . . Weapon 4 | 2 . 2 Energy Gun 1 | 1 . . Energy Cannon 1 | . . 1 Ballistic Gun 1 | 1 . . Ballistic Cannon 1 | . . 1 Launcher . | . . . Special Weapon . | . . . Impact Weapon . | . . . Slashing Weapon . | . . . Piercing Weapon . | . . . Special Melee Weapon . | . . . Unidentified Prototypes . | . . . Parts Lost 6 | . . 6 Power 1 | . . 1 Propulsion 3 | . . 3 Utility . | . . . Weapon 2 | . . 2 Highest Loss Streak 5 | . . 5 To Critical Strikes . | . . . Average Slot Usage (%) 91 | . 100 87 Engine 10 | . 14 8 Core 1 | . . 2 Wheel 24 | . 28 23 Device 3 | . 11 . Storage 14 | . 14 14 Processor 10 | . 2 14 Energy Gun 10 | . 14 9 Energy Cannon 2 | . . 3 Ballistic Gun 10 | . 14 8 Naked Turns . | . . . Heaviest Build 21 | 14 19 21 Greatest Support 26 | 26 26 26 Greatest Overweight (x) 1 | . . 1 Average Overweight (x) . | . . . Largest Inventory Capacity 10 | 8 10 10 Average Capacity 9 | 7 8 10 Most Carried 10 | 6 9 10 Average Carried 7 | 2 7 8 Final Capacity 10 | 8 10 10 Final Carried 9 | 6 9 8 Class Distribution -------------------- 100% | Mutant Dominant Class ---------------- Mutant | -10/Materials Mutant | -10/Mines Resources | -11 -10 -10 ----------- Run | Yrd Mat Min Matter Collected 603 | 247 32 324 Remotely . | . . . Salvage Created 294 | 28 . 266 Parts 14 | 6 . 8 Haulers Intercepted . | . . . Recyclers Shooed . | . . . Parts Field Recycled . | . . . Retrieved Matter . | . . . Parts Self-Destructed . | . . . Prevented . | . . . Kills | -11 -10 -10 ------- Run | Yrd Mat Min Combat Hostiles Destroyed 15 | . . 15 Guns 7 | . . 7 Cannons 8 | . . 8 Classes Destroyed 3 | 1 . 2 Tunneler 1 | 1 . . Grunt 4 | . . 4 Assembled 11 | . . 11 Best Kill Streak 9 | 1 . 9 Combat Bots Only 9 | . . 9 Max Kills in Single Turn 1 | 1 . 1 Gunslinging . | . . . Exploded . | . . . Melee . | . . . Uniques/NPCs Destroyed . | . . . Combat | -11 -10 -10 -------- Run | Yrd Mat Min Hostile Shots Fired 85 | . . 85 Missed 24 | . . 24 Damage Taken 952 | . . 952 Core 256 | . . 256 Absorbed by Shields . | . . . Core Remaining (%) 100 | 100 . . Volleys Fired 56 | 1 2 53 Largest 2 | 2 2 2 Hottest 97 | 60 60 97 Shots Fired 90 | 2 4 84 Gun 66 | 2 4 60 Cannon 24 | . . 24 Launcher . | . . . Special . | . . . Kinetic 47 | 1 2 44 Thermal 43 | 1 2 40 Explosive . | . . . Electromagnetic . | . . . Robot Hit Streak 13 | 1 5 13 Robot Miss Streak 3 | . . 3 Penetration Max 1 | . . 1 Secondary Targets . | . . . Shots Hit Robots 60 | 1 4 55 Core Hits 26 | 1 1 24 Critical Kills 2 | . . 2 Critical Parts Destroyed . | . . . Critical Strikes 2 | . . 2 Destroy 2 | . . 2 Melee Attacks . | . . . Impact . | . . . Slashing . | . . . Piercing . | . . . Sneak Attacks . | . . . Combat Hostiles . | . . . Follow-up Attacks . | . . . Damage Inflicted 894 | 11 44 839 Guns 618 | 11 44 563 Cannons 276 | . . 276 Explosions . | . . . Melee . | . . . Ramming . | . . . Kinetic 489 | . 22 467 Thermal 405 | 11 22 372 Explosive . | . . . Electromagnetic . | . . . Impact . | . . . Slashing . | . . . Piercing . | . . . Highest Corruption 4 | . . 4 Average Corruption 3 | . . 3 Corruption Purged . | . . . Corruption Blocked . | . . . Effects 2 | . . 2 Matter Fused 1 | . . 1 Alerts 1 | . . 1 Overload Shots . | . . . Overflow Damage . | . . . Projectiles . | . . . Explosions . | . . . Melee . | . . . Knockbacks 2 | . . 2 Impact . | . . . Kinetic 2 | . . 2 Secondary . | . . . Self-Inflicted Damage . | . . . Shots . | . . . Rammed . | . . . Targets Rammed . | . . . Kicked . | . . . Crushed . | . . . Highest Temperature 416 | . . 416 Average Temperature 139 | . . 139 Received Heat Transfer 351 | . . 351 Effects 5 | . . 5 Interference 3 | . . 3 Matter Decay 1 | . . 1 Short Circuit 1 | . . 1 Siege Activations . | . . . Robots Corrupted . | . . . Combat Hostiles . | . . . Parts Fried . | . . . Impact Corruptions . | . . . Robots Melted . | . . . Combat Hostiles . | . . . Parts Melted 1 | . . 1 Heat Transferred 848 | 25 50 773 Parts Sabotaged . | . . . Parts Stolen . | . . . Parts Stripped . | . . . Power Chain Reactions . | . . . Alert | -11 -10 -10 ------- Run | Yrd Mat Min Peak Influence 115 | 5 65 115 Initial 25 | . 3 25 Average 65 | 1 43 87 Maximum Alert Level . | . . . Low Security (%) 100 | 100 100 100 Level 1 . | . . . Level 2 . | . . . Level 3 . | . . . Level 4 . | . . . Level 5 . | . . . High Security . | . . . Max Security . | . . . Squads Dispatched . | . . . Investigation . | . . . Extermination . | . . . Reinforcement . | . . . Assault . | . . . Garrison . | . . . Intercept . | . . . Searches Triggered . | . . . Construction Impeded . | . . . Haulers Reinforced . | . . . Active Scanning Responses . | . . . Cargo Convoy Interrupts . | . . . Stealth | -11 -10 -10 --------- Run | Yrd Mat Min Distress Signals . | . . . Communications Jammed . | . . . Distress Signals . | . . . Times Spotted 21 | . 3 18 Peak Tracking Total 6 | . 3 6 Tactical Retreats 3 | . . 3 Traps | -11 -10 -10 ------- Run | Yrd Mat Min Traps Triggered . | . . . Indirectly . | . . . Trap Hack Attempts . | . . . Triggered . | . . . Disarmed . | . . . Reprogrammed . | . . . Reused . | . . . Traps Extracted . | . . . Installed . | . . . Triggered . | . . . Machines | -11 -10 -10 ---------- Run | Yrd Mat Min Machines Disabled . | . . . Max in Single Turn . | . . . Machines Repaired . | . . . Machines Dismantled . | . . . Machines Sabotaged . | . . . Overloaded Fab Kills . | . . . Hacking | -11 -10 -10 --------- Run | Yrd Mat Min Machines Accessed 4 | . 3 1 Terminals 3 | . 3 . Fabricators . | . . . Repair Stations . | . . . Recycling Units . | . . . Scanalyzers . | . . . Garrison Access . | . . . Total Hacks 11 | . 10 1 Successful 10 | . 9 1 Failed 1 | . 1 . Catastrophic . | . . . Database Lockouts . | . . . Manual . | . . . Terminals 10 | . 10 . Fabricators . | . . . Repair Stations . | . . . Recycling Units . | . . . Scanalyzers . | . . . Garrison Access . | . . . Terminal Hacks 10 | . 9 1 Open Door 1 | . . 1 Emergency Access Points 1 | . 1 . Terminal Index 1 | . 1 . Locate Traps 1 | . 1 . Dispatch Records 3 | . 3 . Hauler Manifests 1 | . 1 . Zone Layout 2 | . 2 . Fabricator Hacks . | . . . Repair Station Hacks . | . . . Recycling Unit Hacks . | . . . Scanalyzer . | . . . Garrison Access Hacks . | . . . Unauthorized Hacks . | . . . Terminals . | . . . Fabricators . | . . . Repair Stations . | . . . Recycling Units . | . . . Scanalyzers . | . . . Garrison Access . | . . . Data Cores Recovered . | . . . Used . | . . . Hacking Detections 1 | . 1 . Full Trace Events . | . . . Feedback Events . | . . . Feedback Blocked . | . . . Robot Schematics Acquired . | . . . Robots Built . | . . . Authchips . | . . . Time . | . . . Total Robot Build Rating . | . . . Part Schematics Acquired . | . . . Parts Built . | . . . Authchips . | . . . Time . | . . . Total Part Build Rating . | . . . Parts Repaired . | . . . Time . | . . . Parts Recycled . | . . . Recycled Matter . | . . . Retrieved Matter . | . . . Retrieved Components . | . . . Parts Scanalyzed . | . . . Part Schematics Acquired . | . . . Parts Damaged . | . . . Bothacking | -11 -10 -10 ------------ Run | Yrd Mat Min Used RIF Installer . | . . . Robots Hacked . | . . . Non-combat . | . . . Combat . | . . . Robot Hacks Applied . | . . . Relay Couplers Released . | . . . Fabnet Peak Effective % . | . . . Robots Rewired . | . . . Allies Hacked . | . . . Hacks Repelled . | . . . Allies | -11 -10 -10 -------- Run | Yrd Mat Min Total Allies . | . . . Largest Group . | . . . Highest-Rated Group . | . . . Highest-Rated Ally . | . . . Total Orders . | . . . Ally Attacks . | . . . Total Damage . | . . . Kills . | . . . Allies Corrupted . | . . . Allies Melted . | . . . Intel | -11 -10 -10 ------- Run | Yrd Mat Min Robot Analysis Total . | . . . Derelict Logs Recovered 1 | . . 1 Drone Launches . | . . . Drone Recoveries . | . . . Exploration | -11 -10 -10 ------------- Run | Yrd Mat Min Turns Passed 668 | 86 171 411 Spaces Moved 531 | 75 174 282 Core 1 | 1 . . Treads . | . . . Legs . | . . . Wheels 530 | 74 174 282 Hover . | . . . Flight . | . . . Fastest Speed 50 | 50 90 80 Average Speed 87 | 88 90 85 Slowest Speed 95 | 90 90 95 Overloaded Moves . | . . . Propulsion Burnouts . | . . . Robots Hopped . | . . . Cave-ins Triggered . | . . . Exploration Rate (%) 35 | 4 37 65 Regions Visited 2 Branch Regions 1 Pre-discovered Areas . | . . . Known Exits Taken 1 | . 1 . Unknown Exits Taken 1 | 1 . . Scrap Searched . | . . . Spaces Dug . | . . . Terrain Destroyed 8 | . . 8 Melee . | . . . Projectile 8 | . . 8 AOE . | . . . Terrain Rammed . | . . . Walls Destroyed . | . . . Machines Disabled . | . . . Actions | -11 -10 -10 --------- Run | Yrd Mat Min Total 642 | 88 184 370 Wait 14 | . . 14 Move 529 | 74 173 282 Hop . | . . . Pick Up 19 | 6 5 8 Fast Attach 7 | 7 . . Attach 6 | . . 6 Detach 1 | . . 1 Swap 3 | . 2 1 Drop 7 | . 2 5 Fire 56 | 1 2 53 Melee . | . . . Ram . | . . . Kick . | . . . Crush . | . . . Escape Stasis . | . . . Rewire . | . . . Trap . | . . . Miscellaneous . | . . . Route ------- -11/Scrapyard -10/Materials (discovered 3 exits: *Mat / *Min x2) -10/Mines (discovered 2 exits: *Mat x2) History --------- Turn | Location | Event 15 | -11/Scrapyard | Discovered new exit (range 16) 87 | -11/Scrapyard | Entered Materials 152 | -10/Materials | Discovered new exit (range 11) 172 | -10/Materials | Discovered new exit (range 6) 197 | -10/Materials | Discovered new exit (range 16) 232 | -10/Materials | Identified exit to Materials 256 | -10/Materials | Identified exit to Mines 258 | -10/Materials | Entered Mines 324 | -10/Mines | Build established: Mutant 382 | -10/Mines | Assembled infested the area 432 | -10/Mines | A weapon hastily lodged in a ceiling crevice suddenly fell to the ground 432 | -10/Mines | Discovered exit to Materials (range 9) 451 | -10/Mines | Met a Derelict who couldn't figure out how to use a Trap Extractor 522 | -10/Mines | Core integrity fell below 50% 536 | -10/Mines | Core integrity fell below 20% 565 | -10/Mines | Lost 5 parts (1p2n2w) 574 | -10/Mines | Destroyed 9 combat bots 641 | -10/Mines | Learned 8 Materials zone layouts 652 | -10/Mines | Discovered exit to Materials (range 8) 669 | -10/Mines | Destroyed by as-78999 with Assembled Rifle Last Messages --------------- 00579_ U-05 Engineer builds a Wall. 00583_ U-05 Engineer destroyed. 00586_ Acquired Wheel. 00592_ as-57611 destroyed. 00597_ Acquired 5 matter. 00598_ Acquired 21 matter. 00603_ Acquired 77 matter. 00608_ Acquired Wheel. 00610_ System corrupted: Matter fused (-5). 00610_ Acquired 2 matter. 00613_ Acquired 14 matter. 00616_ Acquired 7 matter. 00620_ Acquired Wheel. 00621_ Acquired 2 matter. 00630_ K-01 Serf collects debris. 00641_ Acquired derelict log, extracted data. Data stored: Materials zone layouts (x8). 00648_ as-99214 destroyed. 00652_ EXIT=FOUND: MATERIALS 00656_ K-01 Serf collects debris. Map ----- +----------------------------------------------------+ | #"##### ######???????? | | ####### ##??????? | | ##???# #??????? | | ####!######### #### #??????? | | % ##??#]##??????# ## ## #???????? | | #???# ######### ### #???????? | | # ##???#! #?# #???????? | | #####????# "#"########?## #???????? | | ?????????# ####?????????##### #???????? | | ?????????#!#????????????????### #???????? | | ????????##%#??????????????????## ##???????? | | ???????##![##??????????????????#########????????? | | ??????## #???????????????????????????????????? | | ?????## ##??##??????????????????????????????? | | ????## * #??# ?????????????????????????????? | | ???## #??# #????????????????????????????? | | ??## ##??? < ###?????????????????????????? | | ### !%#????? ! ##???????????????????????? | | ! !## %#??%= #???????????????????????? | | =% #??? % ???????????????????????? | | ###! #??## ???????????????????????? | | #?##"######?## %!#?###???????????????????? | | #??# #??????# =%]#? #???????????????????? | | ####"####???# ##*%##= ##??????????????????? | | #???## =%=!! ##?????????????????? | | #???# %@%% ####??????????????? | | ## ### #???### ==%<% = ! #??????????????? | | #### #?# ###??# #! %%= *!%* #?????????????? | | ##??# #?# =### # =!!#! || #?????????????? | | #???# #?# % ####=%!|###*%= #?????????????? | | ??? #?## ## ##??## #????????????? | | ??? #??### % #?????#a #???????????? | | ??? #????## #????? ??????????? | | ??###??????# ?? ??????????? | | ###??????????# ## ??????????? | | ????????????# #### ???????????? | | ????????????# #???# ?##???????????? | | ????????????## #????##### ??????????????? | | ?????????????# #?????????? ##??????????????? | | ?????????????## ##???????????#???????????????? | | ????????????????####????????????????????????????? | | ????????????????????????????????????????????????? | | ????????????????????????????????????????????????? | | ????????????????????????????????????????????????? | | ????????????????????????????????????????????????? | | ????????????????????????????????????????????????? | | ????????????????????????????????????????????????? | | ????????????????????????????????????????????????? | | ????????????????????????????????????????????????? | | ????????????????????????????????????????????????? | +----------------------------------------------------+ Best States ------------- Heat Dissipation 25 Energy Generation 14 Energy Capacity 250 Matter Stores 300 Matter Capacity 300 Sight Range 16 Terrain Scan Density 10 Evasion (%) 44 Item Schematics ----------------- None Robot Schematics ------------------ None Fabricated ------------ Nothing Alien Tech Used ----------------- None Achievements -------------- None Challenges ------------ None Game ------ Seed TrapTractorInterrupter Manual? 0 Play Time 00:13:21 Cumulative 16.4 hours Start 2024.04.26 @ 21:07:51 End 2024.04.26 @ 21:16:26 Sessions 1 Manual Loads 0 Difficulty Rogue Special Mode None Game No. 27 Rogue 27 Adventurer 0 Explorer 0 Win Type - Total 0 Types 0/0/0/0/0/0/0/0/0 Lore% 19 Gallery% 20 Achievement% 18 Wizard Run 0 Options --------- Layout 1 ASCII 0 Keyboard 1 Movement Arrows Keybinds 0 Fullscreen 1 Font 24/Smallcaps Map View 50x35 Zoom Use 0% Tactical HUD 1 Map Filters NONE Filters NONE Steam 1 RUN: ee9cd3f5-dbf8-479a-b55d-4dd00cb3795b